bitfinex/quotes_BTCUSD_20220303
["timestamp","ask_amount","ask_price","bid_price","bid_amount"]
[1646332748823,0.89150423,42296.0,42295.0,0.55915]
[1646332749025,0.502725,42296.0,42295.0,0.55915]
[1646332750023,0.497725,42296.0,42295.0,0.55915]
[1646332750824,0.501725,42296.0,42295.0,0.55915]
[1646332751426,0.66662378,42296.0,42295.0,0.55915]
[1646332751670,0.501725,42296.0,42295.0,0.55915]
[1646332752072,0.497725,42296.0,42295.0,0.55915]
[1646332752871,0.500725,42296.0,42295.0,0.55915]
[1646332754071,0.500725,42296.0,42295.0,0.5]
[1646332754072,0.497725,42296.0,42295.0,0.5]
[1646332755526,0.497725,42296.0,42295.0,0.4281692]
[1646332756827,0.502725,42296.0,42295.0,0.4281692]
[1646332757228,0.67081691,42296.0,42295.0,0.4281692]
[1646332757428,0.502725,42296.0,42295.0,0.4281692]
[1646332757834,0.802725,42296.0,42295.0,0.4281692]
[1646332758030,0.797725,42296.0,42295.0,0.4281692]
[1646332758429,0.95628259,42296.0,42295.0,0.4281692]
[1646332758930,0.797725,42296.0,42295.0,0.4281692]
[1646332759577,0.897725,42296.0,42295.0,0.4281692]
[1646332760876,0.602725,42296.0,42295.0,0.4281692]
[1646332761075,0.69308056,42296.0,42295.0,0.4281692]
[1646332761278,0.8,42294.0,42289.0,0.118338]
[1646332761479,0.8,42294.0,42287.0,0.00058424]
[1646332761480,0.68898389,42290.0,42287.0,0.00116848]
[1646332761679,0.68898389,42290.0,42287.0,0.00019005]
[1646332761680,0.3,42288.0,42287.0,0.00019005]
[1646332761879,0.409925,42288.0,42287.0,0.00019005]
[1646332762278,0.362725,42287.0,42282.0,0.0101695]
[1646332762580,0.38886882,42287.0,42282.0,0.0101695]
[1646332762782,0.38886882,42287.0,42282.0,0.10877566]
[1646332763030,0.0472,42288.0,42283.0,0.18720717]
[1646332763331,0.362725,42287.0,42282.0,0.10877566]
[1646332763529,0.362725,42288.0,42283.0,0.05437361]
[1646332763729,0.362725,42288.0,42286.0,0.01085707]
[1646332764029,0.059188,42289.0,42286.0,0.01085707]
[1646332764228,0.059188,42289.0,42288.0,0.01154859]
[1646332764429,0.421913,42289.0,42287.0,0.16112908]
[1646332764629,0.362725,42288.0,42285.0,0.059166]
[1646332764830,0.064188,42291.0,42289.0,0.059161]
[1646332765033,0.00591519,42297.0,42295.0,0.06216661]
[1646332765231,0.00591519,42297.0,42295.0,0.05189957]
[1646332765232,0.362725,42296.0,42295.0,0.05189957]
[1646332765630,0.00591519,42297.0,42295.0,0.05189957]
[1646332766232,0.362725,42296.0,42295.0,0.22934057]
[1646332768174,0.06506719,42297.0,42295.0,0.22934057]
[1646332768375,0.362725,42296.0,42295.0,0.22934057]
[1646332768576,0.49096927,42300.0,42296.0,0.962725]
[1646332768775,0.4786277,42300.0,42298.0,0.059138]
[1646332769175,0.1238067,42300.0,42298.0,0.059138]
[1646332769479,0.1238067,42300.0,42298.0,0.1182766]
[1646332770728,0.1238067,42300.0,42298.0,0.059138]
[1646332773036,0.362725,42299.0,42298.0,0.060138]
[1646332773228,0.362725,42299.0,42298.0,0.001]
[1646332773828,0.462725,42299.0,42298.0,0.001]
[1646332774028,0.462725,42299.0,42295.0,20.0]
[1646332774295,0.362725,42297.0,42295.0,20.0]
[1646332776195,0.46518609,42303.0,42302.0,19.23584336]
[1646332776398,0.45336609,42303.0,42302.0,19.23584336]
[1646332776595,0.362717,42303.0,42302.0,19.23584336]
[1646332776795,0.362717,42303.0,42302.0,19.29646636]
[1646332776998,0.368717,42303.0,42302.0,19.29646636]
[1646332778230,0.468717,42303.0,42302.0,19.29646636]
[1646332778426,0.462717,42303.0,42302.0,19.29646636]
[1646332780627,0.89141491,42317.0,42311.0,15.82872542]
[1646332780831,0.53239462,42312.0,42311.0,14.71635643]
[1646332781027,0.53239462,42312.0,42311.0,14.36141743]
[1646332781430,0.53239462,42312.0,42311.0,14.00649043]
[1646332781676,0.74553514,42312.0,42311.0,14.00649043]
[1646332781977,0.74553514,42312.0,42311.0,13.65156043]
[1646332782276,0.84553514,42312.0,42311.0,13.65156043]
[1646332782478,1.02300714,42312.0,42311.0,13.29661743]
[1646332782879,1.02800714,42312.0,42311.0,13.29661743]
[1646332783078,1.02800714,42312.0,42311.0,12.94170543]
[1646332783482,1.02800714,42312.0,42311.0,12.58678543]
[1646332783879,1.02800714,42312.0,42305.0,0.10261303]
[1646332784079,0.281094,42310.0,42305.0,0.10261303]
[1646332784280,0.306094,42310.0,42305.0,0.10261303]
[1646332784479,0.135,42306.0,42300.0,0.059154]
[1646332784680,0.362694,42305.0,42300.0,0.059154]
[1646332784879,0.387694,42305.0,42300.0,0.059154]
[1646332785078,0.1,42304.0,42300.0,0.059154]
[1646332785278,0.281094,42303.0,42300.0,0.059154]
[1646332785526,0.281094,42303.0,42300.0,0.11933412]
[1646332785726,0.281094,42303.0,42300.0,0.059154]
[1646332785928,0.281094,42303.0,42299.0,0.11677135]
[1646332787630,0.16226155,42301.0,42299.0,0.11677135]
[1646332787830,0.79671549,42300.0,42294.0,0.01182]
[1646332788031,0.0472,42299.0,42294.0,0.01182]
[1646332788229,0.281094,42298.0,42292.0,0.01182]
[1646332788430,0.32783555,42299.0,42291.0,0.01182]
[1646332788431,0.362694,42296.0,42291.0,0.01182]
[1646332788630,0.409894,42296.0,42291.0,0.01182]
[1646332788833,0.409894,42296.0,42292.0,0.11318041]
[1646332789029,0.409894,42296.0,42293.0,0.05916]
[1646332789881,0.409894,42296.0,42293.0,0.24265545]
[1646332790082,0.409894,42296.0,42293.0,0.05916]
[1646332791298,0.409894,42296.0,42295.0,0.16098214]
[1646332791299,0.362694,42296.0,42295.0,0.16098214]
[1646332791490,0.025,42300.0,42295.0,0.16098214]
[1646332791689,0.362694,42299.0,42297.0,0.118299]
[1646332792924,0.362694,42299.0,42298.0,0.06367814]
[1646332793124,0.362694,42300.0,42298.0,0.12282814]
[1646332793326,0.004,42304.0,42299.0,0.4493518]
[1646332793526,0.004,42304.0,42303.0,0.15]
[1646332793725,0.0003193,42307.0,42304.0,0.7]
[1646332793926,0.135,42305.0,42304.0,0.7]
[1646332794129,0.135,42305.0,42304.0,0.91909192]
[1646332794826,0.135,42305.0,42304.0,0.001]
[1646332795229,0.00031934,42307.0,42305.0,0.97356]
[1646332795428,0.00047901,42307.0,42306.0,0.17356]
[1646332795629,0.00047901,42307.0,42306.0,0.536254]
[1646332795827,0.003,42310.0,42308.0,0.02356]
[1646332796027,0.05,42316.0,42309.0,0.53181191]
[1646332796229,0.33696808,42324.0,42319.0,0.10561735]
[1646332796230,0.10086808,42324.0,42319.0,0.10561735]
[1646332796429,0.421094,42320.0,42318.0,0.15]
[1646332796686,0.561816,42319.0,42318.0,0.15]
[1646332797379,0.561816,42319.0,42318.0,0.209121]
[1646332798580,0.561816,42319.0,42318.0,0.199121]
[1646332799682,0.561816,42319.0,42311.0,5.1187]
[1646332799683,0.561816,42319.0,42313.0,0.15]
[1646332799884,0.14,42315.0,42313.0,0.15]
[1646332800082,0.421094,42314.0,42313.0,0.15]
[1646332800283,0.199134,42314.0,42313.0,0.15]
[1646332800549,0.199134,42314.0,42313.0,0.23517187]
[1646332800747,0.561828,42314.0,42313.0,0.23517187]
[1646332800952,0.565828,42314.0,42313.0,0.23517187]
[1646332801247,0.203134,42314.0,42313.0,0.23517187]
[1646332801648,0.144,42314.0,42313.0,0.23517187]
[1646332802147,0.14,42314.0,42313.0,0.23517187]
[1646332802950,0.281094,42313.0,42312.0,0.05913]
[1646332803150,0.281094,42313.0,42311.0,5.0]
[1646332803151,0.421094,42313.0,42311.0,5.0]
[1646332803351,0.14,42312.0,42311.0,5.0]
[1646332803550,0.549894,42312.0,42311.0,5.0]
[1646332804191,0.502694,42312.0,42311.0,5.0]
[1646332804994,0.505694,42312.0,42311.0,5.05410923]
[1646332805692,0.143,42312.0,42311.0,5.06772816]
[1646332806090,0.14,42312.0,42311.0,5.06272816]
[1646332806896,0.509694,42312.0,42311.0,5.0]
[1646332808132,0.502694,42312.0,42311.0,5.0]
[1646332808934,0.505694,42312.0,42311.0,5.0]
[1646332809733,0.552894,42312.0,42311.0,5.0]
[1646332809933,0.552894,42312.0,42311.0,4.90575573]
[1646332810835,0.75924256,42312.0,42311.0,4.90575573]
[1646332811032,0.553894,42312.0,42311.0,4.90575573]
[1646332811883,0.553894,42312.0,42298.0,0.00037689]
[1646332811884,0.95,42311.0,42298.0,0.00037689]
[1646332812086,0.95,42311.0,42298.0,0.00025126]
[1646332812087,0.387459,42310.0,42298.0,0.00025126]
[1646332812281,0.4,42309.0,42298.0,0.00012563]
[1646332812482,0.409894,42308.0,42292.0,0.06756983]
[1646332812685,0.409894,42308.0,42299.0,0.15]
[1646332812883,0.1,42307.0,42299.0,0.15]
[1646332813082,0.328294,42306.0,42299.0,0.15]
[1646332813682,0.328294,42306.0,42297.0,0.118295]
[1646332813886,0.353294,42306.0,42296.0,0.15]
[1646332814285,0.376854,42306.0,42291.0,0.28547281]
[1646332814685,0.362694,42304.0,42293.0,0.15]
[1646332814883,0.0472,42303.0,42291.0,0.268309]
[1646332815084,0.281094,42302.0,42291.0,0.118309]
[1646332815282,0.362694,42300.0,42289.0,0.16151148]
[1646332815535,0.0472,42299.0,42289.0,0.15]
[1646332815734,0.8,42297.0,42288.0,0.33247246]
[1646332815935,0.409894,42296.0,42288.0,0.21414946]
[1646332816136,0.409894,42296.0,42294.0,0.00012066]
[1646332816337,0.409894,42296.0,42294.0,0.00024132]
[1646332816938,0.412894,42296.0,42294.0,0.00024132]
[1646332817137,0.412894,42296.0,42290.0,0.08841643]
[1646332818337,0.409894,42296.0,42290.0,0.08841643]
[1646332818938,0.409894,42296.0,42295.0,0.15438228]
[1646332819183,0.409894,42296.0,42293.0,0.059161]
[1646332819782,0.15357063,42296.0,42293.0,1.009161]
[1646332819987,0.05917,42300.0,42299.0,0.18276035]
[1646332820184,0.421908,42300.0,42298.0,0.112417]
[1646332820383,0.421908,42300.0,42299.0,0.15]
[1646332820982,0.426908,42300.0,42299.0,0.23964694]
[1646332821184,0.426908,42300.0,42297.0,0.16046383]
[1646332821386,0.426908,42300.0,42297.0,0.15]
[1646332821782,0.426908,42300.0,42297.0,0.16455551]
[1646332821982,0.426908,42300.0,42292.0,0.329691]
[1646332822182,0.421908,42300.0,42296.0,0.22009512]
[1646332822384,0.421908,42300.0,42296.0,0.37009512]
[1646332822589,0.05917,42300.0,42299.0,0.15]
[1646332822786,0.05917,42300.0,42299.0,0.16279238]
[1646332823037,0.05917,42300.0,42299.0,0.16237601]
[1646332823038,0.362738,42300.0,42299.0,0.16237601]
[1646332823835,0.362738,42300.0,42299.0,0.3216463]
[1646332824336,0.362738,42300.0,42299.0,0.16482056]
[1646332824537,0.362738,42300.0,42299.0,0.15]
[1646332825336,0.362738,42300.0,42299.0,0.1248621]
[1646332826138,0.362738,42300.0,42298.0,0.118293]
[1646332826543,0.362738,42300.0,42298.0,0.2431551]
[1646332826983,0.362738,42300.0,42299.0,0.19379242]
[1646332827383,0.362738,42300.0,42299.0,0.26210407]
[1646332827787,0.059146,42301.0,42299.0,0.56210407]
[1646332827985,0.062137,42305.0,42300.0,0.662738]
[1646332828185,0.00027254,42306.0,42304.0,0.1248621]
[1646332828186,0.00040881,42306.0,42304.0,0.1248621]
[1646332828386,0.00040881,42306.0,42305.0,0.3]
[1646332828585,0.00027254,42306.0,42305.0,0.3]
[1646332828785,0.00013627,42306.0,42305.0,0.3]
[1646332828985,0.002,42306.0,42305.0,0.3]
[1646332829289,0.118268,42315.0,42305.0,0.3]
[1646332829290,0.118268,42315.0,42307.0,0.0826801]
[1646332829485,0.118268,42315.0,42314.0,0.1248621]
[1646332829686,0.8988,42323.0,42314.0,0.4876001]
[1646332829885,0.8988,42323.0,42312.0,0.3]
[1646332829886,0.98721409,42323.0,42312.0,0.3]
[1646332830085,0.98721409,42323.0,42319.0,0.1248621]
[1646332830291,0.98721409,42323.0,42308.0,0.19848075]
[1646332830292,0.362738,42322.0,42314.0,0.1248621]
[1646332830731,0.45115209,42322.0,42314.0,0.1248621]
[1646332831034,0.45715209,42322.0,42314.0,0.1248621]
[1646332831231,0.00013722,42320.0,42314.0,0.1248621]
[1646332831434,0.071919,42319.0,42316.0,0.05913]
[1646332831634,0.059126,42318.0,42317.0,0.15766121]
[1646332831931,0.421864,42318.0,42316.0,0.05913]
[1646332832431,0.059126,42318.0,42316.0,0.05913]
[1646332832634,0.00011368,42319.0,42318.0,0.02356]
[1646332832837,0.00011368,42319.0,42318.0,0.686298]
[1646332832838,0.00022736,42319.0,42318.0,0.686298]
[1646332833033,0.00034104,42319.0,42318.0,0.85588892]
[1646332833231,0.00034104,42319.0,42318.0,0.95250625]
[1646332833435,0.00011368,42319.0,42318.0,1.07582234]
[1646332833633,0.002,42323.0,42318.0,0.71308434]
[1646332833833,0.002,42323.0,42321.0,0.059103]
[1646332834032,0.002,42323.0,42322.0,0.20165654]
[1646332834288,0.05,42333.0,42331.0,0.09197391]
[1646332834289,0.104104,42333.0,42331.0,0.09197391]
[1646332834488,0.38638425,42332.0,42331.0,0.09197391]
[1646332834688,0.02364625,42332.0,42326.0,0.118208]
[1646332834889,0.054104,42333.0,42330.0,0.1248621]
[1646332835091,0.02364625,42331.0,42330.0,0.1248621]
[1646332835288,0.02364625,42331.0,42330.0,0.1839661]
[1646332835491,0.02372812,42331.0,42330.0,0.37404071]
[1646332835692,0.02389186,42331.0,42330.0,0.42605933]
[1646332835890,0.02389186,42331.0,42330.0,0.31493671]
[1646332836090,0.02389186,42331.0,42326.0,0.118208]
[1646332836290,0.36281987,42331.0,42330.0,0.1248621]
[1646332836493,0.502738,42331.0,42330.0,0.1248621]
[1646332836992,0.50789109,42331.0,42330.0,0.1248621]
[1646332837193,0.39169043,42331.0,42330.0,0.1248621]
[1646332837392,0.39184352,42331.0,42330.0,0.1248621]
[1646332837694,0.39169043,42331.0,42330.0,0.1248621]
[1646332837945,0.39138425,42331.0,42326.0,0.09641504]
[1646332838148,0.367738,42331.0,42328.0,0.1248621]
[1646332838346,0.362738,42331.0,42326.0,0.28990456]
[1646332838546,0.362738,42331.0,42320.0,0.3]
[1646332838746,0.362738,42332.0,42323.0,0.059109]
[1646332838947,0.362738,42332.0,42326.0,0.1248621]
[1646332839747,0.362738,42332.0,42329.0,0.21044971]
[1646332839948,0.00015853,42331.0,42330.0,0.1248621]
[1646332840150,0.02396331,42331.0,42330.0,0.1248621]
[1646332840348,0.02412184,42331.0,42330.0,0.1248621]
[1646332840752,0.02380478,42331.0,42330.0,0.1248621]
[1646332840950,0.02364625,42331.0,42330.0,0.45168918]
[1646332841550,0.02364625,42331.0,42330.0,0.28120592]
[1646332843081,0.02864625,42331.0,42330.0,0.28120592]
[1646332843583,0.02864625,42331.0,42330.0,0.1248621]
[1646332844383,0.02364625,42331.0,42330.0,0.1248621]
[1646332844981,0.02764625,42331.0,42330.0,0.1248621]
[1646332845630,0.02764625,42331.0,42330.0,0.28888091]
[1646332846231,0.02364625,42331.0,42330.0,0.28888091]
[1646332846932,0.02764625,42331.0,42330.0,0.58888091]
[1646332847232,0.02764625,42331.0,42330.0,0.28888091]
[1646332848233,0.02364625,42331.0,42330.0,0.28857362]
[1646332848834,0.02364569,42331.0,42330.0,0.28857362]
[1646332849035,0.02764569,42331.0,42330.0,0.28857362]
[1646332849280,0.02764513,42331.0,42330.0,0.28857362]
[1646332850181,0.02364513,42331.0,42330.0,0.28857362]
[1646332850581,0.02364513,42331.0,42330.0,0.45972236]
[1646332851782,0.02364513,42331.0,42330.0,0.28857362]
[1646332853033,0.02364513,42331.0,42330.0,0.45338731]
[1646332853433,0.02364513,42331.0,42330.0,0.75338731]
[1646332854234,0.02364513,42331.0,42330.0,0.75238731]
[1646332854730,0.37074513,42331.0,42330.0,0.58857362]
[1646332856037,0.37074513,42331.0,42330.0,0.80232795]
[1646332857886,0.37074513,42331.0,42330.0,1.16506595]
[1646332858082,0.3471,42331.0,42330.0,1.16506595]
[1646332858284,0.308776,42346.0,42337.0,0.05908303]
[1646332858483,0.362738,42345.0,42339.0,0.059084]
[1646332858886,0.118176,42346.0,42343.0,0.12455481]
[1646332859083,0.421822,42345.0,42343.0,0.12455481]
[1646332859283,0.421822,42345.0,42343.0,0.31634113]
[1646332861140,0.422822,42345.0,42343.0,0.31634113]
[1646332861735,0.060084,42345.0,42343.0,0.31634113]
[1646332862137,0.362738,42344.0,42343.0,0.31634113]
[1646332862336,0.059084,42345.0,42343.0,0.31634113]
[1646332862736,0.059084,42345.0,42343.0,0.12455481]
[1646332863238,0.063084,42345.0,42343.0,0.12455481]
[1646332864194,0.362738,42344.0,42340.0,0.12054912]
[1646332864397,0.362738,42343.0,42340.0,0.12054912]
[1646332864995,0.364738,42343.0,42340.0,0.12054912]
[1646332865193,0.002,42343.0,42341.0,0.29411011]
[1646332866395,0.362738,42343.0,42341.0,0.29411011]
[1646332866596,0.362738,42343.0,42341.0,0.12455481]
[1646332866796,0.0002321,42344.0,42341.0,0.12455481]
[1646332867094,0.059084,42345.0,42341.0,0.12655481]
[1646332867295,0.059084,42345.0,42344.0,0.12455481]
[1646332867595,0.421822,42345.0,42344.0,0.12455481]
[1646332867796,0.42193414,42345.0,42344.0,0.12455481]
[1646332868036,0.00033642,42345.0,42344.0,0.12455481]
[1646332868236,0.00033642,42345.0,42344.0,0.29222911]
[1646332868438,0.00033642,42345.0,42344.0,0.95496711]
[1646332868439,0.00022428,42345.0,42344.0,0.95496711]
[1646332868637,0.00011214,42345.0,42344.0,0.78729281]
[1646332868835,0.05,42356.0,42344.0,0.78729281]
[1646332868836,0.05,42356.0,42344.0,0.42455481]
[1646332869036,0.05,42356.0,42352.0,0.08770412]
[1646332869037,0.362738,42356.0,42352.0,0.08770412]
[1646332869237,0.421807,42355.0,42354.0,0.12455481]
[1646332869836,0.421807,42355.0,42345.0,0.118137]
[1646332870040,0.118142,42358.0,42346.0,0.12455481]
[1646332870238,0.059075,42350.0,42346.0,0.12455481]
[1646332870437,0.059075,42350.0,42347.0,0.5]
[1646332870836,0.059075,42350.0,42349.0,0.12455481]
[1646332871038,0.059075,42350.0,42347.0,0.504]
[1646332871240,0.362738,42348.0,42347.0,0.504]
[1646332871438,0.362738,42349.0,42347.0,0.504]
[1646332871687,0.059075,42350.0,42347.0,0.504]
[1646332871891,0.059075,42350.0,42347.0,0.62855481]
[1646332872289,0.05934218,42350.0,42347.0,0.62455481]
[1646332872490,0.362738,42348.0,42347.0,0.62455481]
[1646332872693,0.362738,42349.0,42347.0,0.92455481]
[1646332872892,0.00026718,42350.0,42347.0,0.63754967]
[1646332873091,0.059071,42354.0,42347.0,0.62455481]
[1646332873692,9.289e-05,42351.0,42347.0,0.62455481]
[1646332873993,0.059077,42350.0,42347.0,0.62455481]
[1646332874393,0.059077,42350.0,42347.0,0.61536597]
[1646332875434,0.059077,42350.0,42349.0,0.18106103]
[1646332875634,0.421815,42350.0,42349.0,0.18106103]
[1646332876235,0.421815,42350.0,42347.0,0.61536597]
[1646332876439,0.421815,42350.0,42347.0,0.49081116]
[1646332877037,0.424815,42350.0,42342.0,0.005]
[1646332877242,0.059092,42343.0,42342.0,0.005]
[1646332877442,0.271011,42343.0,42342.0,0.005]
[1646332879037,0.271011,42343.0,42337.0,0.5]
[1646332879291,0.131011,42343.0,42337.0,0.5]
[1646332879491,0.131011,42343.0,42332.0,0.12455481]
[1646332879895,0.0236443,42339.0,42332.0,0.12455481]
[1646332880095,0.071919,42334.0,42332.0,0.12455481]
[1646332880293,0.0236443,42333.0,42332.0,0.12455481]
[1646332880494,0.3863823,42333.0,42332.0,0.12455481]
[1646332880693,0.3863823,42333.0,42329.0,0.18755489]
[1646332880892,0.362738,42333.0,42331.0,0.12455481]
[1646332881091,0.362738,42333.0,42326.0,0.52005]
[1646332881092,0.0236443,42332.0,42326.0,0.52005]
[1646332881292,0.362738,42331.0,42327.0,0.17887729]
[1646332881492,0.421842,42331.0,42326.0,0.52005]
[1646332881693,0.662738,42330.0,42326.0,0.52005]
[1646332881893,0.362738,42330.0,42326.0,0.52005]
[1646332882293,0.362738,42330.0,42326.0,0.02005]
[1646332882936,0.362738,42330.0,42326.0,0.01005]
[1646332883132,0.366738,42330.0,42326.0,0.01005]
[1646332883632,0.366738,42330.0,42321.0,0.5]
[1646332883833,0.366738,42330.0,42323.0,0.1810541]
[1646332884034,0.366738,42330.0,42321.0,0.5]
[1646332884434,0.362738,42330.0,42321.0,0.5]
[1646332884840,0.3472,42329.0,42318.0,0.009452]
[1646332885045,0.071919,42328.0,42320.0,0.19892883]
[1646332885334,0.071919,42328.0,42318.0,0.509452]
[1646332885335,0.0472,42327.0,42318.0,0.509452]
[1646332885534,0.362738,42326.0,42318.0,0.509452]
[1646332885735,0.409938,42326.0,42319.0,0.1201886]
[1646332886034,0.409938,42326.0,42319.0,0.29230522]
[1646332886235,0.409938,42326.0,42322.0,0.17161399]
[1646332886685,0.409938,42326.0,42322.0,0.16661399]
[1646332887088,0.409938,42326.0,42319.0,0.1201886]
[1646332887286,0.409938,42326.0,42316.0,0.20710274]
[1646332887591,0.409938,42326.0,42316.0,0.0118]
[1646332887787,0.071919,42324.0,42316.0,0.0118]
[1646332887989,0.071919,42324.0,42318.0,0.20224625]
[1646332888490,0.071919,42324.0,42315.0,0.12455481]
[1646332889688,0.071919,42324.0,42317.0,0.19903354]
[1646332889889,0.071919,42324.0,42315.0,0.12455481]
[1646332890093,0.106324,42326.0,42321.0,0.10120005]
[1646332890294,0.362738,42325.0,42321.0,0.10120005]
[1646332891139,0.059124,42326.0,42321.0,0.10120005]
[1646332891338,0.362738,42325.0,42321.0,0.10120005]
[1646332891740,0.059124,42326.0,42320.0,0.12455481]
[1646332891941,0.071919,42325.0,42313.0,0.93575481]
[1646332892140,0.071919,42325.0,42313.0,0.74565481]
[1646332892840,0.14,42321.0,42313.0,0.5]
[1646332893044,0.131051,42316.0,42310.0,0.62455481]
[1646332893741,0.131051,42316.0,42312.0,0.17287825]
[1646332893940,0.131051,42316.0,42310.0,0.62455481]
[1646332894188,0.131051,42316.0,42310.0,0.12455481]
[1646332895192,0.132051,42316.0,42310.0,0.12455481]
[1646332895589,0.132051,42316.0,42308.0,7.769e-05]
[1646332895590,0.3,42315.0,42308.0,7.769e-05]
[1646332895790,0.362738,42314.0,42308.0,7.769e-05]
[1646332895992,0.362738,42314.0,42308.0,0.00015538]
[1646332896293,0.09736419,42309.0,42308.0,0.00023307]
[1646332896492,0.44456419,42309.0,42308.0,0.00023307]
[1646332896689,0.44456419,42309.0,42303.0,0.0032]
[1646332896690,0.362738,42307.0,42303.0,0.0032]
[1646332896889,0.0472,42306.0,42303.0,0.0032]
[1646332897089,0.071919,42305.0,42303.0,0.20931174]
[1646332897289,0.071919,42305.0,42303.0,0.0032]
[1646332898743,0.211919,42305.0,42303.0,0.0032]
[1646332899141,0.211919,42305.0,42298.0,0.0011]
[1646332899142,0.8,42304.0,42298.0,0.0011]
[1646332899339,0.409938,42303.0,42298.0,0.0011]
[1646332899742,0.409938,42303.0,42297.0,0.001]
[1646332899940,0.409938,42303.0,42298.0,0.00015788]
[1646332900442,0.409938,42303.0,42298.0,0.00047364]
[1646332901041,0.409938,42303.0,42297.0,0.001]
[1646332901441,0.409938,42303.0,42298.0,0.00015776]
[1646332901689,0.409938,42303.0,42298.0,0.00031552]
[1646332901891,0.409938,42303.0,42298.0,0.00047328]
[1646332902289,0.409938,42303.0,42298.0,0.00031552]
[1646332902494,0.409938,42303.0,42298.0,0.00015776]
[1646332902692,0.409938,42303.0,42298.0,0.0001152]
[1646332903095,0.415938,42303.0,42298.0,0.0001152]
[1646332903292,0.211919,42299.0,42298.0,0.0001152]
[1646332903492,0.812738,42298.0,42297.0,0.001]
[1646332903692,0.952738,42298.0,42297.0,0.001]
[1646332903991,0.071919,42297.0,42287.0,0.8021]
[1646332904191,0.071919,42297.0,42287.0,0.5021]
[1646332904391,0.071919,42297.0,42287.0,0.0021]
[1646332904992,0.071919,42297.0,42287.0,0.3021]
[1646332905193,0.073919,42297.0,42289.0,0.20996678]
[1646332906343,0.071919,42297.0,42294.0,0.11543428]
[1646332907244,0.362738,42299.0,42294.0,0.11543428]
[1646332908249,0.362738,42299.0,42296.0,0.059148]
[1646332908845,0.362738,42299.0,42296.0,0.22897249]
[1646332909046,0.059164,42300.0,42296.0,0.22897249]
[1646332909486,0.059164,42300.0,42297.0,0.18309351]
[1646332909786,0.059164,42300.0,42298.0,0.01451594]
[1646332911988,0.002,42305.0,42298.0,0.01451594]
[1646332912287,0.002,42305.0,42302.0,0.18369081]
[1646332912487,0.14,42303.0,42302.0,0.18369081]
[1646332912938,0.14,42303.0,42302.0,0.29830713]
[1646332913345,0.14,42303.0,42302.0,0.18369081]
[1646332913742,0.14,42303.0,42302.0,0.059136]
[1646332913942,0.14,42303.0,42300.0,0.118272]
[1646332913943,0.362738,42302.0,42300.0,0.118272]
[1646332914150,0.502738,42301.0,42296.0,9.172e-05]
[1646332914344,0.14,42297.0,42296.0,9.172e-05]
[1646332914543,0.502738,42297.0,42296.0,9.172e-05]
[1646332914943,0.502738,42297.0,42296.0,0.00018344]
[1646332915246,0.505738,42297.0,42296.0,0.00027516]
[1646332915444,0.564898,42297.0,42296.0,0.00027516]
[1646332915646,0.564898,42297.0,42296.0,0.00018344]
[1646332915948,0.20216,42297.0,42293.0,0.12455481]
[1646332916145,0.06216,42297.0,42293.0,0.18370681]
[1646332916347,0.06216,42297.0,42296.0,0.12455481]
[1646332916547,0.19916,42297.0,42296.0,0.30875153]
[1646332917196,0.20016,42297.0,42296.0,0.30875153]
[1646332917396,0.562898,42297.0,42296.0,0.12455481]
[1646332917597,0.20016,42297.0,42296.0,0.12455481]
[1646332917796,0.562898,42297.0,42296.0,0.12455481]
[1646332917996,0.20016,42297.0,42296.0,0.12455481]
[1646332918601,0.562898,42297.0,42296.0,0.12455481]
[1646332918800,0.20016,42297.0,42296.0,0.32478156]
[1646332918998,0.19916,42297.0,42293.0,0.12455481]
[1646332919201,0.362738,42296.0,42294.0,0.00011858]
[1646332919398,0.14,42295.0,42294.0,0.00011858]
[1646332919598,0.14,42295.0,42294.0,0.00023716]
[1646332919797,0.502738,42295.0,42294.0,0.00035574]
[1646332920200,0.502738,42295.0,42294.0,0.00011858]
[1646332920447,0.502738,42295.0,42290.0,0.3]
[1646332920448,0.14,42295.0,42290.0,0.3]
[1646332920648,0.362738,42296.0,42289.0,0.29461394]
[1646332921049,0.05916,42297.0,42289.0,0.49207594]
[1646332921253,0.362738,42296.0,42289.0,0.32036477]
[1646332921453,0.05916,42297.0,42289.0,0.12290277]
[1646332921650,0.362738,42296.0,42289.0,0.11204391]
[1646332921849,0.362738,42296.0,42288.0,0.12565481]
[1646332922067,0.3472,42295.0,42288.0,0.0011]
[1646332922253,0.02544519,42293.0,42288.0,0.0011]
[1646332922451,0.409938,42292.0,42288.0,0.0011]
[1646332922657,0.14,42289.0,42288.0,0.0011]
[1646332922849,0.259119,42289.0,42288.0,0.0011]
[1646332923054,0.119119,42289.0,42288.0,0.0011]
[1646332924051,0.259119,42289.0,42288.0,0.0011]
[1646332926590,0.22329923,42289.0,42288.0,0.0011]
[1646332926790,0.22329677,42289.0,42288.0,0.0010195]
[1646332927190,0.2262943,42289.0,42288.0,0.0010195]
[1646332927390,0.22629307,42289.0,42288.0,0.0010195]
[1646332928446,0.22329307,42289.0,42288.0,0.0010195]
[1646332929046,0.119119,42289.0,42288.0,0.0010195]
[1646332929244,0.123119,42289.0,42288.0,0.0010195]
[1646332929645,0.075919,42289.0,42288.0,0.16923157]
[1646332929846,0.004,42289.0,42288.0,0.53196957]
[1646332930047,0.004,42289.0,42288.0,0.16923157]
[1646332930247,0.004,42289.0,42288.0,0.46923157]
[1646332930447,0.05918,42292.0,42289.0,0.15587725]
[1646332931047,0.05918,42292.0,42291.0,0.12455481]
[1646332931246,0.19918,42292.0,42291.0,0.12455481]
[1646332931450,0.271099,42292.0,42288.0,0.12585355]
[1646332931689,0.05918,42292.0,42288.0,0.12585355]
[1646332931887,0.05918,42292.0,42290.0,0.15939204]
[1646332932087,0.14,42291.0,42288.0,0.12566739]
[1646332932288,0.05918,42292.0,42288.0,0.12557431]
[1646332932491,0.05918,42292.0,42289.0,9.308e-05]
[1646332932687,0.362738,42291.0,42289.0,9.308e-05]
[1646332932887,0.05918,42292.0,42289.0,0.00018616]
[1646332933094,0.362738,42291.0,42289.0,0.00027924]